Cogmind - Beta 14 @@@ ROGUE MODE // 2024.10.06 @ 18:58:26 Player: THN-L0C Result: Destroyed by D-53 Grenadier with Mini Grenade Launcher Performance ------------- Evolutions (0) 0 Regions Visited (4) 800 Robots Destroyed (30) 150 Value Destroyed (508) 508 Prototype IDs (27) 540 Alien Tech Used (0) 0 Bonus (266) 266 TOTAL SCORE: 2264 Bonus ------- Aligned with FarCom 300 Friendly Fire -34 Cogmind --------- Core Integrity 0/250 Matter 188/300 Energy 100/100 System Corruption 0% Temperature Cool (0) Movement Treading (320) Ox2 Location -9/Mines Parts ------- > --- POWER (1) -------- (None) > --- PROPULSION (2) --- Light Treads > --- UTILITY (2) ------ High-capacity Storage Unit > --- WEAPON (2) ------- Rocket Launcher > --- INVENTORY (20) --- Light Treads Light Treads Light Treads Large Matter Pod (150) Improved Terrain Scanner Seismic Detector Light Armor Plating Light Armor Plating Light Armor Plating Bomb Drone Bay Army-in-a-Box (30/30) Light Assault Rifle Mining Laser Peak State ------------ > --- POWER ------------ Light Ion Engine > --- PROPULSION ------- Light Treads Improved Treads > --- UTILITY ---------- High-capacity Storage Unit Light Armor Plating > --- WEAPON ----------- Light Assault Rifle Grenade Launcher > --- INVENTORY -------- Light Treads Light Treads Light Treads Large Matter Pod Improved Terrain Scanner Seismic Detector Light Armor Plating Light Armor Plating Light Armor Plating Bomb Drone Bay Army-in-a-Box Light Assault Rifle Grenade Launcher Mining Laser [Rating: 16] Favorites ----------- Power Ion Engine Engine Ion Engine Propulsion Light Treads Treads Light Treads Utility Light Armor Plating Device Seismic Detector Storage High-capacity Storage Unit Protection Light Armor Plating Weapon Light Assault Rifle Energy Gun Medium Laser Ballistic Gun Light Assault Rifle Launcher Grenade Launcher Special Weapon Mining Laser Build | -11 -10 -10 -10 -9 ------- Run | Yrd Mat Min Exi Min Slots Evolved . | . . . . . Power . | . . . . . Propulsion . | . . . . . Utility . | . . . . . Weapon . | . . . . . Parts Attached 37 | 7 25 2 1 2 Power 4 | 1 2 . 1 . Engine 4 | 1 2 . 1 . Core . | . . . . . Reactor . | . . . . . Propulsion 11 | 2 8 . . 1 Treads 11 | 2 8 . . 1 Leg . | . . . . . Wheel . | . . . . . Hover . | . . . . . Flight . | . . . . . Utility 10 | 2 7 1 . . Device 2 | 1 1 . . . Storage 3 | 1 2 . . . Processor . | . . . . . Hackware . | . . . . . Protection 5 | . 4 1 . . Artifact . | . . . . . Weapon 12 | 2 8 1 . 1 Energy Gun 2 | 1 1 . . . Energy Cannon . | . . . . . Ballistic Gun 3 | 1 1 1 . . Ballistic Cannon . | . . . . . Launcher 2 | . 1 . . 1 Special Weapon 5 | . 5 . . . Impact Weapon . | . . . . . Slashing Weapon . | . . . . . Piercing Weapon . | . . . . . Special Melee Weapon . | . . . . . Unidentified Prototypes . | . . . . . Parts Lost 6 | . 1 . . 5 Power 2 | . 1 . . 1 Propulsion 1 | . . . . 1 Utility 1 | . . . . 1 Weapon 2 | . . . . 2 Highest Loss Streak 4 | . 1 . . 4 To Critical Strikes . | . . . . . Average Slot Usage (%) 97 | . 96 100 100 97 Engine 12 | . 11 14 14 11 Treads 27 | . 27 28 28 28 Device 3 | . 7 . . . Storage 14 | . 14 14 14 14 Protection 10 | . 6 14 14 14 Energy Gun 4 | . 9 . . . Ballistic Gun 13 | . 13 14 14 14 Launcher 7 | . . 14 14 14 Special Weapon 1 | . 3 . . . Peak Build Rating 16 | 7 8 9 15 16 Average Rating 9 | 5 7 8 11 15 On Entrance 7 | . 7 8 9 15 Naked Turns . | . . . . . Heaviest Build 52 | 12 52 52 52 50 Greatest Support 43 | 40 40 40 40 43 Greatest Overweight (x) 16 | 3 16 1 1 1 Average Overweight (x) . | . . 1 1 1 Largest Inventory Capacity 20 | 8 20 20 20 20 Average Capacity 16 | 7 12 20 20 20 Most Carried 20 | 2 14 15 20 20 Average Carried 12 | . 7 13 17 19 Final Capacity 20 | 8 20 20 20 20 Final Carried 20 | 2 12 15 20 19 Class Distribution -------------------- 100% | Mutant Dominant Class ---------------- Mutant | -10/Materials Mutant | -10/Mines Mutant | -10/Exiles Mutant | -9/Mines Resources | -11 -10 -10 -10 -9 ----------- Run | Yrd Mat Min Exi Min Matter Collected 839 | 274 209 103 79 174 Remotely . | . . . . . Salvage Created 692 | 90 514 7 . 81 Parts 55 | 8 40 5 . 2 Haulers Intercepted 2 | . 2 . . . Recyclers Shooed 7 | . 7 . . . Parts Field Recycled . | . . . . . Retrieved Matter . | . . . . . Parts Self-Destructed . | . . . . . Prevented . | . . . . . Kills | -11 -10 -10 -10 -9 ------- Run | Yrd Mat Min Exi Min Combat Hostiles Destroyed 30 | . 14 3 . 13 Guns 11 | . 10 . . 1 AOE 18 | . 3 3 . 12 Classes Destroyed 10 | 1 7 . . 2 Worker 1 | . 1 . . . Tunneler 4 | 4 . . . . Hauler 2 | . 2 . . . Recycler 1 | . 1 . . . Operator 1 | . 1 . . . Watcher 1 | . 1 . . . Swarmer 12 | . 9 3 . . Grunt 7 | . 5 . . 2 Brawler 1 | . . . . 1 Assembled 10 | . . . . 10 Best Kill Streak 10 | 2 4 3 . 10 Combat Bots Only 10 | . 3 3 . 10 Max Kills in Single Turn 2 | 2 2 2 . 2 Gunslinging 1 | . 1 . . . Exploded 2 | . 2 2 . 2 Melee . | . . . . . Uniques/NPCs Destroyed . | . . . . . Combat | -11 -10 -10 -10 -9 -------- Run | Yrd Mat Min Exi Min Hostile Shots Fired 92 | . 62 3 . 27 Missed 24 | . 18 1 . 5 Damage Taken 1276 | . 436 18 . 822 Core 264 | . 72 . . 192 Absorbed by Shields . | . . . . . Regen/Repaired (Parts) 19 | . 19 . . . Core Remaining (%) 100 | 100 . . . . Volleys Fired 98 | 4 69 2 . 23 Largest 2 | 2 2 2 . 2 Hottest 100 | 70 100 50 . 53 Shots Fired 152 | 8 113 4 . 27 Gun 118 | 8 101 2 . 7 Cannon . | . . . . . Launcher 26 | . 4 2 . 20 Special 8 | . 8 . . . Kinetic 70 | 4 57 2 . 7 Thermal 56 | 4 52 . . . Explosive 26 | . 4 2 . 20 Electromagnetic . | . . . . . Robot Hit Streak 12 | 3 12 3 . 8 Robot Miss Streak 3 | 1 3 . . 2 Penetration Max . | . . . . . Secondary Targets 1 | . 1 . . . Max Gunslinging Chain 1 | . 1 . . . Shots Hit Robots 87 | 5 67 2 . 13 Core Hits 73 | 4 36 2 . 31 Critical Kills . | . . . . . Critical Parts Destroyed . | . . . . . Critical Strikes 6 | 1 5 . . . Burn 6 | 1 5 . . . Melee Attacks . | . . . . . Impact . | . . . . . Slashing . | . . . . . Piercing . | . . . . . Sneak Attacks . | . . . . . Combat Hostiles . | . . . . . Follow-up Attacks . | . . . . . Damage Inflicted 2296 | 76 936 138 . 1146 Guns 837 | 76 703 10 . 48 Cannons . | . . . . . Explosions 1458 | . 232 128 . 1098 Melee . | . . . . . Ramming 1 | . 1 . . . Kinetic 330 | 27 245 10 . 48 Thermal 507 | 49 458 . . . Explosive 1458 | . 232 128 . 1098 Electromagnetic . | . . . . . Impact . | . . . . . Slashing . | . . . . . Piercing . | . . . . . Highest Corruption . | . . . . . Average Corruption . | . . . . . Corruption Purged . | . . . . . Corruption Blocked . | . . . . . Overload Shots . | . . . . . Overflow Damage 47 | . 8 11 . 28 Projectiles . | . . . . . Explosions 47 | . 8 11 . 28 Melee . | . . . . . Knockbacks . | . . . . . Impact . | . . . . . Kinetic . | . . . . . Secondary . | . . . . . Self-Inflicted Damage 155 | . . . . 155 Shots 6 | . . . . 6 Rammed 1 | . 1 . . . Targets Rammed 1 | . 1 . . . Kicked . | . . . . . Crushed . | . . . . . Highest Temperature 256 | 40 256 16 . 22 Average Temperature 46 | 19 53 12 . 11 Received Heat Transfer 160 | . 114 . . 46 Effects 1 | . 1 . . . Energy Bleed 1 | . 1 . . . Siege Activations . | . . . . . Robots Corrupted . | . . . . . Combat Hostiles . | . . . . . Parts Fried . | . . . . . Impact Corruptions . | . . . . . Robots Melted 1 | . 1 . . . Combat Hostiles 1 | . 1 . . . Parts Melted 6 | 2 4 . . . Heat Transferred 1924 | 222 1702 . . . Parts Sabotaged . | . . . . . Parts Stolen . | . . . . . Parts Stripped . | . . . . . Power Chain Reactions . | . . . . . Alert | -11 -10 -10 -10 -9 ------- Run | Yrd Mat Min Exi Min Peak Influence 268 | 20 268 142 . 100 Initial 27 | . 13 27 . . Average 74 | 10 103 18 . 59 Maximum Alert Level 1 | . 1 . . . Low Security (%) 92 | 100 85 100 . 100 Level 1 7 | . 14 . . . Level 2 . | . . . . . Level 3 . | . . . . . Level 4 . | . . . . . Level 5 . | . . . . . High Security . | . . . . . Max Security . | . . . . . Squads Dispatched . | . . . . . Investigation . | . . . . . Extermination . | . . . . . Reinforcement . | . . . . . Assault . | . . . . . Garrison . | . . . . . Intercept . | . . . . . Searches Triggered . | . . . . . Construction Impeded . | . . . . . Haulers Reinforced . | . . . . . Active Scanning Responses . | . . . . . Cargo Convoy Interrupts . | . . . . . Stealth | -11 -10 -10 -10 -9 --------- Run | Yrd Mat Min Exi Min Distress Signals 5 | . 5 . . . Communications Jammed . | . . . . . Distress Signals . | . . . . . Times Spotted 50 | . 28 3 . 19 Peak Tracking Total 17 | . 4 3 . 17 Tactical Retreats 4 | . 3 . . 1 Traps | -11 -10 -10 -10 -9 ------- Run | Yrd Mat Min Exi Min Traps Triggered 5 | . 5 . . . Indirectly . | . . . . . Trap Hack Attempts . | . . . . . Triggered . | . . . . . Disarmed . | . . . . . Reprogrammed . | . . . . . Reused . | . . . . . Traps Extracted . | . . . . . Installed . | . . . . . Triggered . | . . . . . Machines | -11 -10 -10 -10 -9 ---------- Run | Yrd Mat Min Exi Min Machines Disabled 3 | . . 3 . . Max in Single Turn 2 | . . 2 . . Machines Repaired . | . . . . . Machines Dismantled . | . . . . . Machines Sabotaged . | . . . . . Overloaded Fab Kills . | . . . . . Hacking | -11 -10 -10 -10 -9 --------- Run | Yrd Mat Min Exi Min Machines Accessed 10 | . 8 1 1 . Terminals 7 | . 7 . . . Fabricators . | . . . . . Repair Stations 1 | . 1 . . . Recycling Units . | . . . . . Scanalyzers . | . . . . . Garrison Access . | . . . . . Total Hacks 25 | . 23 1 1 . Successful 17 | . 15 1 1 . Failed 7 | . 7 . . . Catastrophic 1 | . 1 . . . Database Lockouts 1 | . 1 . . . Manual 18 | . 17 . 1 . Terminals 21 | . 21 . . . Fabricators . | . . . . . Repair Stations 2 | . 2 . . . Recycling Units . | . . . . . Scanalyzers . | . . . . . Garrison Access . | . . . . . Terminal Hacks 5 | . 3 1 1 . Robot Analysis 1 | . 1 . . . Prototype ID Bank 2 | . 2 . . . Open Door 1 | . . 1 . . Derelict Proto ID Bank 1 | . . . 1 . Fabricator Hacks . | . . . . . Repair Station Hacks 2 | . 2 . . . Scan Component 1 | . 1 . . . Repair 1 | . 1 . . . Recycling Unit Hacks . | . . . . . Scanalyzer . | . . . . . Garrison Access Hacks . | . . . . . Unauthorized Hacks 10 | . 10 . . . Terminals 10 | . 10 . . . Botnet 4 | . 4 . . . Operators 1 | . 1 . . . Skim 5 | . 5 . . . Fabricators . | . . . . . Repair Stations . | . . . . . Recycling Units . | . . . . . Scanalyzers . | . . . . . Garrison Access . | . . . . . Data Cores Recovered 1 | . 1 . . . Used 1 | . 1 . . . Hacking Detections 5 | . 5 . . . Full Trace Events . | . . . . . Feedback Events . | . . . . . Feedback Blocked . | . . . . . Robot Schematics Acquired . | . . . . . Robots Built . | . . . . . Authchips . | . . . . . Time . | . . . . . Total Robot Build Rating . | . . . . . Part Schematics Acquired . | . . . . . Parts Built . | . . . . . Authchips . | . . . . . Time . | . . . . . Total Part Build Rating . | . . . . . Parts Repaired 1 | . 1 . . . Time 26 | . 26 . . . Parts Recycled . | . . . . . Recycled Matter . | . . . . . Retrieved Matter . | . . . . . Retrieved Components . | . . . . . Parts Scanalyzed . | . . . . . Part Schematics Acquired . | . . . . . Parts Damaged . | . . . . . Bothacking | -11 -10 -10 -10 -9 ------------ Run | Yrd Mat Min Exi Min Used RIF Installer . | . . . . . Robots Hacked . | . . . . . Non-combat . | . . . . . Combat . | . . . . . Robot Hacks Applied . | . . . . . Relay Couplers Released . | . . . . . Fabnet Peak Effective % . | . . . . . Robots Rewired . | . . . . . Allies Hacked . | . . . . . Hacks Repelled . | . . . . . Allies | -11 -10 -10 -10 -9 -------- Run | Yrd Mat Min Exi Min Total Allies . | . . . . . Largest Group . | . . . . . Highest-Rated Group . | . . . . . Highest-Rated Ally . | . . . . . Total Orders . | . . . . . Ally Attacks . | . . . . . Total Damage . | . . . . . Kills . | . . . . . Allies Corrupted . | . . . . . Allies Melted . | . . . . . Intel | -11 -10 -10 -10 -9 ------- Run | Yrd Mat Min Exi Min Robot Analysis Total 1 | . 1 . . . Derelict Logs Recovered 2 | . . 1 . 1 Drone Launches . | . . . . . Drone Recoveries . | . . . . . Exploration | -11 -10 -10 -10 -9 ------------- Run | Yrd Mat Min Exi Min Turns Passed 3795 | 116 1702 595 723 659 Spaces Moved 1569 | 57 717 243 299 253 Core 18 | 16 2 . . . Treads 1551 | 41 715 243 299 253 Legs . | . . . . . Wheels . | . . . . . Hover . | . . . . . Flight . | . . . . . Fastest Speed 50 | 50 160 240 240 240 Average Speed 213 | 149 189 240 240 240 Slowest Speed 850 | 200 850 240 240 240 Overloaded Moves . | . . . . . Propulsion Burnouts . | . . . . . Robots Hopped . | . . . . . Cave-ins Triggered . | . . . . . Exploration Rate (%) 56 | 3 79 68 69 63 Regions Visited 4 Branch Regions 3 Pre-discovered Areas . | . . . . . Known Exits Taken . | . . . . . Unknown Exits Taken 4 | 1 1 1 1 . Scrap Searched 4 | . . 1 . 3 Spaces Dug 6 | . 6 . . . Terrain Destroyed 177 | . 21 . . 156 Melee . | . . . . . Projectile 8 | . 8 . . . AOE 169 | . 13 . . 156 Terrain Rammed . | . . . . . Walls Destroyed . | . . . . . Machines Disabled . | . . . . . Actions | -11 -10 -10 -10 -9 --------- Run | Yrd Mat Min Exi Min Total 1853 | 77 936 253 306 281 Wait 115 | 8 107 . . . Move 1565 | 56 716 242 298 253 Hop . | . . . . . Pick Up 21 | 2 12 4 2 1 Fast Attach 18 | 7 11 . . . Attach 1 | . . . . 1 Detach . | . . . . . Swap 18 | . 14 2 1 1 Drop 13 | . 6 3 2 2 Fire 98 | 4 69 2 . 23 Melee . | . . . . . Ram . | . . . . . Kick . | . . . . . Crush 1 | . 1 . . . Escape Stasis . | . . . . . Rewire 3 | . . . 3 . Trap . | . . . . . Miscellaneous . | . . . . . Route ------- -11/Scrapyard -10/Materials (discovered 4 exits: *Mat x3 / *Min) -10/Mines (discovered 3 exits: *Mat x2 / *Exi) -10/Exiles -9/Mines History --------- Turn | Location | Event 7 | -11/Scrapyard | Discovered new exit (range 15) 117 | -11/Scrapyard | Entered Materials 308 | -10/Materials | Build established: Mutant 379 | -10/Materials | Discovered new exit (range 12) 382 | -10/Materials | Central database locked down 398 | -10/Materials | Discovered new exit (range 5) 405 | -10/Materials | Learned Storage security intel 436 | -10/Materials | Learned Storage stockpile data 457 | -10/Materials | Learned 4 Recycling zone layouts 470 | -10/Materials | Learned 2 Storage zone layouts 471 | -10/Materials | Learned Storage trap positions 484 | -10/Materials | Identified exit to Materials 1390 | -10/Materials | Repaired Seismic Detector 1819 | -10/Materials | Entered Mines 2014 | -10/Mines | Found DCF Scrap (13 items) 2106 | -10/Mines | Found the Drone Emporium 2120 | -10/Mines | Found Prototype Device 2123 | -10/Mines | Learned Materials stockpile data 2402 | -10/Mines | Deemed a non-threat by the Exiles lab entrance 2405 | -10/Mines | Discovered new exit (range 5) 2414 | -10/Mines | Entered Exiles 2479 | -10/Exiles | Met 8R-AWN 2513 | -10/Exiles | Met EX-HEX 2580 | -10/Exiles | Met EX-BIN 2695 | -10/Exiles | Aligned with FarCom system 2698 | -10/Exiles | Given EX-Vault access code 2760 | -10/Exiles | Opened EX-Vault 2782 | -10/Exiles | Found Army-in-a-Box 2831 | -10/Exiles | Warned to stay clear of 0b10 Research branches 3010 | -10/Exiles | Met EX-DEC 3116 | -10/Exiles | Discovered new exit (range 10) 3137 | -10/Exiles | Left Exiles lab with Army-in-a-Box 3137 | -10/Exiles | Entered Mines 3141 | -9/Mines | Met a Derelict bent on vengeance 3432 | -9/Mines | Received a Rocket Launcher from a helpful Derelict 3652 | -9/Mines | Assembled infested the area 3657 | -9/Mines | Assisted by a Guerilla fighting off Assembled 3696 | -9/Mines | Destroyed 10 combat bots 3791 | -9/Mines | Core integrity fell below 50% 3795 | -9/Mines | Core integrity fell below 20% 3796 | -9/Mines | Destroyed by D-53 Grenadier with Mini Grenade Launcher Last Messages --------------- 03669_ Destroyed Lgt. Ion Engine. 03671_ as-59114 destroyed. 03672_ K-01 Serf collects debris. 03673_ as-82863 destroyed. 03673_ as-27668 destroyed. 03675_ The unstable cave ceiling collapses. 03675_ Destroyed Asb. F-torch. 03675_ as-35802 destroyed. 03675_ as-72569 destroyed. 03677_ Destroyed Asb. Blade. 03680_ The unstable cave ceiling collapses. 03682_ R-06 Scavenger collects Flexi-carbon Leg. 03690_ R-06 Scavenger collects Bore Cannon. 03772_ Acquired 9 matter. 03784_ Grenade Launcher destroyed. 03787_ Destroyed Lgt. Deuterium Engine. 03790_ The unstable cave ceiling collapses. 03792_ Lgt. Assault Rifle destroyed. 03794_ Imp. Treads destroyed. 03794_ Lgt. Armor Plating destroyed. Map ----- +----------------------------------------------------+ | #????## #??????????????????????????????????????? | | ##### #####??????????????????????????????????? | | ????????????????????????????????? | | #???????????????????????????????????????? | | ## # ##???????????????????????????????????????? | | ?# #?? ##????????????????????????????????????????? | | ?# #????????????????????????????? ?????????????? | | ?# #??????????????????????????? ?????????????? | | ?# #??????????????????#????????? ?????????????? | | ?# #????????????????? #????????? ###??????????? | | ## ##??????????????## ??????????# % ??????????? | | # ##????????????? ?????????? # ??????????? | | ##???????????# #????????## ??????????? | | #????????#### #????????? ??????????? | | #???????## ##????????# ??????????? | | #???????# #???????## ###?????????? | | #?####### #???????# # ?????????? | | #?# =#?????????# ] ###???????? | | = [##?# ###### ==[#??????????# #???????? | | ] ##### #????###!%#??????????# #????????? | | ! #?# #??????#!!#??######???# #????????? | | ### ##??????#=!#### ###?## ###???????? | | #???????#%!## ##?### #???????? | | #### #???????# =# ##??#### #####???? | | # #??# #???????# # #?????# ## ##??? | | # #?## ##??????# @ #?????## #??# | | #?# ##?????# # #????## #### | | #?# ##??# ##????# ## | | ###### #?# dd ###?????# | | #?### ## ######???# | | ### ### ### ##?## | | ## #?# #### ### | | ## ### #?# | | ##### #?# ## | | #???### t# # ??## #### | | ### ##?????# #####???# ##??# | | ??### #####??????# #??## ##???# | | ????####??????????###### #### ##????# | | ???????????????????????# ####?????# | | ???????????????????????##### ####????????# | | ???????????????????????????# #???????????# | | ??????????????????????????## ##??????????# " | | ??????????????????????????# #??????????# " | | ??????????????????????????## #??????????# " | | ???????????????????????????##### #??????????# | | ???????????????????????????????## ##??????????### | | ????????????????????????????????####?????????????? | | ?????????????????????????????????????????????????? | | | | | +----------------------------------------------------+ Best States ------------- Heat Dissipation 25 Energy Generation 10 Energy Capacity 250 Matter Stores 300 Matter Capacity 300 Sight Range 16 Terrain Scan Density 10 Armor Coverage 150 Evasion (%) 40 Recoil Reduction 2 Item Schematics ----------------- None Robot Schematics ------------------ None Fabricated ------------ Nothing Alien Tech Used ----------------- None Achievements -------------- None Challenges ------------ None Game ------ Seed ElectrostormMiniVibroblade Manual? 0 Play Time 00:18:51 Cumulative 305.9 hours Start 2024.10.06 @ 18:27:01 End 2024.10.06 @ 18:58:26 Sessions 1 Manual Loads 0 Difficulty Rogue Special Mode None Game No. 242 Rogue 242 Adventurer 0 Explorer 0 Win Type - Total 2 Types 1/0/0/1/0/0/0/0/0 Lore% 74 Gallery% 78 Achievement% 59 Wizard Run 0 Options --------- Layout 2 ASCII 0 Keyboard 1 Movement Vi Keybinds 0 Fullscreen 1 Font 32/SmallcapsGlow Map View 77x44 Zoom Use 0% Tactical HUD 1 Map Filters NONE Filters NONE Steam 1 RUN: 2f02e628-a038-4493-8d8e-a2923096023e